fUSD/lending_fUSD_20260207
["ID","MTS","AMOUNT","RATE_DAILY","PERIOD"]
[404703882,1770484807703,-342.865,0.00044052,120]
[404703883,1770484807733,-200.737238,0.00044052,120]
[404703884,1770484807762,-342.865,0.00044052,120]
[404703885,1770484807789,-342.865,0.00044052,120]
[404703886,1770484807819,-337.98365,0.00044052,120]
[404703887,1770484807852,-337.98365,0.00044052,120]
[404703888,1770484807882,-337.98365,0.00044052,120]
[404703889,1770484807912,-337.98365,0.00044052,120]
[404703890,1770484807943,-430.655359,0.00044052,120]
[404703891,1770484807975,-430.655359,0.00044052,120]
[404703892,1770484808007,-840.151235,0.00044052,120]
[404703893,1770484808039,-430.655359,0.00044052,120]
[404703894,1770484808070,-350.29852,0.00044052,120]
[404703895,1770484808100,-840.151235,0.00044052,120]
[404703896,1770484808131,-430.655359,0.00044052,120]
[404703897,1770484808161,-350.29852,0.00044052,120]
[404703898,1770484808190,-840.151235,0.00044052,120]
[404703899,1770484808220,-265.565396,0.00044052,31]
[404703900,1770484808249,-350.29852,0.00044052,120]
[404703901,1770484808285,-840.151235,0.00044052,120]
[404703902,1770484808318,-50000.0,0.00044052,50]
[404703903,1770484808352,-50000.0,0.00044052,51]
[404703904,1770484808384,-50000.0,0.00044052,52]
[404703905,1770484808414,-2500.0,0.00044052,120]
[404703906,1770484808445,-50000.0,0.00044052,53]
[404703907,1770484808477,-50000.0,0.00044052,54]
[404703908,1770484808508,-151.0,0.00044053,120]
[404703909,1770484808539,-151.0,0.00044053,120]
[404703910,1770484808570,-151.0,0.00044053,120]
[404703911,1770484808599,-151.0,0.00044053,120]
[404703912,1770484808627,-151.0,0.00044053,120]
[404703913,1770484808655,-151.0,0.00044053,120]
[404703914,1770484808684,-185.964658,0.00044053,120]
[404703915,1770484808721,-848.725819,0.00044053,120]
[404703916,1770484808752,-848.725819,0.00044053,120]
[404703917,1770484808783,-848.725819,0.00044053,120]
[404703918,1770484808814,-848.725819,0.00044053,120]
[404703919,1770484808846,-848.725819,0.00044053,120]
[404703920,1770484808875,-848.725819,0.00044053,120]
[404703922,1770484808907,-848.725819,0.00044053,120]
[404703923,1770484808941,-848.725817,0.00044053,120]
[404703924,1770484808973,-427.622148,0.00044053,120]
[404703925,1770484809005,-427.622148,0.00044053,120]
[404703926,1770484809037,-427.622148,0.00044053,120]
[404703927,1770484809067,-427.622148,0.00044053,120]
[404703928,1770484809096,-427.622148,0.00044053,120]
[404703929,1770484809129,-427.622148,0.00044053,120]
[404703930,1770484809162,-427.622148,0.00044053,120]
[404703931,1770484809192,-427.622154,0.00044053,120]
[404703932,1770484809225,-180.780419,0.00044053,120]
[404703933,1770484809255,-180.780419,0.00044053,120]
[404703934,1770484809283,-180.780419,0.00044053,120]
[404703935,1770484809312,-180.780419,0.00044053,120]
[404703936,1770484809346,-180.780419,0.00044053,120]
[404703937,1770484809375,-180.780419,0.00044053,120]
[404703938,1770484809404,-180.780419,0.00044053,120]
[404703939,1770484809432,-180.780414,0.00044053,120]
[404703940,1770484809461,-151.0,0.00044053,120]
[404703941,1770484809868,-151.0,0.00044053,120]
[404703942,1770484809897,-151.0,0.00044053,120]
[404703943,1770484809926,-342.865,0.00044053,120]
[404703944,1770484809955,-151.0,0.00044053,120]
[404703945,1770484809982,-342.865,0.00044053,120]
[404703946,1770484810008,-342.865,0.00044053,120]
[404703947,1770484810034,-151.0,0.00044053,30]
[404703948,1770484810059,-387.631268,0.00044053,30]
[404703949,1770484810085,-342.865,0.00044053,120]
[404703950,1770484810111,-337.98365,0.00044053,120]
[404703951,1770484810137,-337.98365,0.00044053,120]
[404703952,1770484810163,-337.98365,0.00044053,120]
[404703953,1770484810190,-337.983642,0.00044053,120]
[404703954,1770484810216,-430.655359,0.00044053,120]
[404703955,1770484810242,-430.655359,0.00044053,120]
[404703956,1770484810287,-840.151235,0.00044053,120]
[404703957,1770484810317,-430.655359,0.00044053,120]
[404703958,1770484810346,-350.29852,0.00044053,120]
[404703959,1770484810377,-840.151235,0.00044053,120]
[404703960,1770484810406,-430.65535,0.00044053,120]
[404703961,1770484810436,-350.29852,0.00044053,120]
[404703962,1770484810465,-840.151235,0.00044053,120]
[404703963,1770484810494,-265.565396,0.00044053,31]
[404703964,1770484810525,-350.29852,0.00044053,120]
[404703965,1770484810561,-151.0,0.00044055,120]
[404703966,1770484810589,-151.0,0.00044055,120]
[404703967,1770484810618,-203.91159973,0.00044055,120]
[404703968,1770484810645,-151.0,0.00044055,120]
[404703969,1770484810670,-151.0,0.00044055,120]
[404703970,1770484810694,-151.0,0.00044055,120]
[404703971,1770484810721,-151.0,0.00044055,120]
[404703972,1770484810747,-253.047317,0.00044055,120]
[404703973,1770484810773,-253.047317,0.00044055,120]
[404703974,1770484810799,-253.047317,0.00044055,120]
[404703975,1770484810825,-253.047317,0.00044055,120]
[404703976,1770484810853,-169.471874,0.00044055,120]
[404703977,1770484810879,-343.274458,0.00044055,120]
[404703978,1770484810907,-343.274458,0.00044055,120]
[404703979,1770484810934,-343.274458,0.00044055,120]
[404703980,1770484810960,-343.274458,0.00044055,120]
[404703981,1770484810986,-399.634803,0.00044055,120]
[404703982,1770484811013,-399.634803,0.00044055,120]
[404703983,1770484811039,-399.634803,0.00044055,120]
[404703984,1770484811064,-399.634803,0.00044055,120]
[404703985,1770484811091,-151.0,0.00044055,120]
[404703986,1770484811117,-282.093951,0.00044055,120]
[404703987,1770484811142,-282.093951,0.00044055,120]
[404703988,1770484811170,-282.093951,0.00044055,120]
[404703989,1770484811197,-282.093951,0.00044055,120]
[404703990,1770484811224,-151.0,0.00044055,120]
[404703991,1770484811251,-151.0,0.00044055,120]
[404703992,1770484811278,-221.369774,0.00044055,120]
[404703993,1770484811305,-173.436972,0.00044055,120]
[404703994,1770484811331,-520.010285,0.00044055,120]
[404703995,1770484811358,-173.436972,0.00044055,120]
[404703996,1770484811384,-520.010285,0.00044055,120]
[404703997,1770484811412,-173.436972,0.00044055,120]
[404703998,1770484811438,-173.436972,0.00044055,120]
[404703999,1770484811466,-520.010285,0.00044055,120]
[404704000,1770484811493,-520.010285,0.00044055,120]
[404704001,1770484811519,-151.0,0.00044055,120]
[404704002,1770484811545,-559.100773,0.00044055,120]
[404704004,1770484811608,-559.100773,0.00044055,120]
[404704005,1770484811635,-559.100773,0.00044055,120]
[404704006,1770484811661,-559.100773,0.00044055,120]
[404704007,1770484811687,-215.388266,0.00044055,120]
[404704008,1770484811713,-188.75661,0.00044055,120]
[404704009,1770484811738,-188.75661,0.00044055,120]
[404704010,1770484811763,-188.75661,0.00044055,120]
[404704011,1770484811788,-188.75661,0.00044055,120]
[404704012,1770484811814,-536.807343,0.00044055,120]
[404704013,1770484811843,-536.807343,0.00044055,120]
[404704014,1770484811870,-536.807343,0.00044055,120]
[404704015,1770484811900,-1193.105908,0.00044055,120]
[404704016,1770484811929,-536.807343,0.00044055,120]
[404704017,1770484811957,-1193.105908,0.00044055,120]
[404704018,1770484811982,-1193.105908,0.00044055,120]
[404704019,1770484812008,-1193.105908,0.00044055,120]
[404704020,1770484812034,-151.0,0.00044055,120]
[404704021,1770484812060,-151.0,0.00044056,120]
[404704022,1770484812086,-151.0,0.00044056,120]
[404704023,1770484812111,-151.0,0.00044056,120]
[404704024,1770484812137,-151.0,0.00044056,120]
[404704025,1770484812163,-151.0,0.00044056,120]
[404704026,1770484812191,-151.0,0.00044056,120]
[404704027,1770484812220,-300.075476,0.00044056,120]
[404704028,1770484812247,-254.712399,0.00044056,120]
[404704029,1770484812275,-253.047317,0.00044056,120]
[404704030,1770484812302,-253.047317,0.00044056,120]
[404704031,1770484812328,-253.047317,0.00044056,120]
[404704032,1770484812354,-253.047317,0.00044056,120]
[404704033,1770484812382,-253.047317,0.00044056,120]
[404704034,1770484812410,-253.047317,0.00044056,120]
[404704035,1770484812435,-253.047317,0.00044056,120]
[404704036,1770484812462,-253.04732,0.00044056,120]
[404704037,1770484812487,-343.274458,0.00044056,120]
[404704038,1770484812513,-343.274458,0.00044056,120]
[404704039,1770484812537,-343.274458,0.00044056,120]
[404704040,1770484812563,-343.274458,0.00044056,120]
[404704041,1770484812587,-343.274458,0.00044056,120]
[404704042,1770484812612,-343.274458,0.00044056,120]
[404704043,1770484812638,-343.274458,0.00044056,120]
[404704044,1770484812663,-343.274467,0.00044056,120]
[404704045,1770484812691,-399.634803,0.00044056,120]
[404704046,1770484812718,-399.634803,0.00044056,120]
[404704047,1770484812743,-399.634803,0.00044056,120]
[404704048,1770484812769,-399.634803,0.00044056,120]
[404704049,1770484812794,-399.634803,0.00044056,120]
[404704050,1770484812819,-399.634803,0.00044056,120]
[404704051,1770484812847,-399.634803,0.00044056,120]
[404704052,1770484812872,-399.634799,0.00044056,120]
[404704053,1770484812899,-151.0,0.00044056,120]
[404704054,1770484812928,-151.0,0.00044056,120]
[404704055,1770484812956,-282.093951,0.00044056,120]
[404704056,1770484812984,-282.093951,0.00044056,120]
[404704057,1770484813016,-282.093951,0.00044056,120]
[404704058,1770484813042,-282.093951,0.00044056,120]
[404704059,1770484813069,-282.093951,0.00044056,120]
[404704060,1770484813095,-282.093951,0.00044056,120]
[404704061,1770484813120,-282.093951,0.00044056,120]
[404704062,1770484813147,-151.0,0.00044056,120]
[404704063,1770484813173,-282.093953,0.00044056,120]
[404704064,1770484813200,-151.0,0.00044056,120]
[404704065,1770484813226,-151.0,0.00044056,120]
[404704066,1770484813252,-151.0,0.00044056,120]
[404704067,1770484813277,-173.436972,0.00044056,120]
[404704068,1770484813303,-173.436972,0.00044056,120]
[404704069,1770484813330,-520.010285,0.00044056,120]
[404704070,1770484813356,-173.436972,0.00044056,120]
[404704071,1770484813380,-520.010285,0.00044056,120]
[404704072,1770484813405,-173.436972,0.00044056,120]
[404704073,1770484813433,-520.010285,0.00044056,120]
[404704074,1770484813458,-173.436972,0.00044056,120]
[404704075,1770484813485,-520.010285,0.00044056,120]
[404704076,1770484813510,-173.436972,0.00044056,120]
[404704077,1770484813535,-173.436972,0.00044056,120]
[404704078,1770484813560,-520.010285,0.00044056,120]
[404704079,1770484813585,-173.436972,0.00044056,120]
[404704080,1770484813610,-520.010285,0.00044056,120]
[404704081,1770484813636,-520.010285,0.00044056,120]
[404704082,1770484813662,-520.01028,0.00044056,120]
[404704083,1770484813688,-151.0,0.00044056,120]
[404704084,1770484813715,-151.0,0.00044056,120]
[404704085,1770484813742,-559.100773,0.00044056,120]
[404704086,1770484813768,-559.100773,0.00044056,120]
[404704087,1770484813794,-559.100773,0.00044056,120]
[404704088,1770484813820,-559.100773,0.00044056,120]
[404704089,1770484813848,-559.100773,0.00044056,120]
[404704090,1770484813878,-559.100773,0.00044056,120]
[404704091,1770484813907,-559.100773,0.00044056,120]
[404704092,1770484813934,-559.10078,0.00044056,120]
[404704093,1770484813959,-188.75661,0.00044056,120]
[404704094,1770484813985,-188.75661,0.00044056,120]
[404704095,1770484814011,-188.75661,0.00044056,120]
[404704096,1770484814037,-188.75661,0.00044056,120]
[404704097,1770484814064,-188.75661,0.00044056,120]
[404704098,1770484814090,-188.75661,0.00044056,120]
[404704099,1770484814116,-188.75661,0.00044056,120]
[404704100,1770484814142,-188.756617,0.00044056,120]
[404704101,1770484814306,-536.807343,0.00044056,120]
[404704102,1770484814333,-536.807343,0.00044056,120]
[404704103,1770484814359,-536.807343,0.00044056,120]
[404704104,1770484814386,-536.807343,0.00044056,120]
[404704105,1770484814412,-536.807343,0.00044056,120]
[404704106,1770484814439,-1193.105908,0.00044056,120]
[404704107,1770484814466,-536.807343,0.00044056,120]
[404704108,1770484814496,-1193.105908,0.00044056,120]
[404704109,1770484814522,-536.807343,0.00044056,120]
[404704110,1770484814548,-1193.105908,0.00044056,120]
[404704111,1770484814575,-1193.105908,0.00044056,120]
[404704112,1770484814602,-536.807338,0.00044056,120]
[404704113,1770484814628,-1193.105908,0.00044056,120]
[404704114,1770484814654,-1193.105908,0.00044056,120]
[404704115,1770484814680,-1193.105908,0.00044056,120]
[404704116,1770484814706,-1193.105917,0.00044056,120]
[404704117,1770484814738,-151.0,0.00044056,120]
[404704118,1770484814765,-151.0,0.00044056,120]
[404704119,1770484814795,-62244.0,0.00044085,30]
[404704120,1770484814820,-552.57820769,0.00044096,120]
[404704121,1770484814850,-1000.0,0.00044099,120]
[404704122,1770484814877,-589.27377694,0.000441,30]
[404704123,1770484814904,-4156.02672659,0.00044121,30]
[404704124,1770484814932,-515.98,0.00044145,30]
[404704125,1770484814963,-50000.0,0.0004415,120]
[404704126,1770484814988,-705.0,0.00044154,30]
[404704127,1770484815015,-50000.0,0.0004418,120]
[404704128,1770484815042,-2964.5531582,0.00044182,120]
[404704129,1770484815069,-287.59417937,0.00044188,30]
[404704130,1770484815095,-226.6763598,0.00044188,30]
[404704131,1770484815120,-151.0447842,0.00044188,30]
[404704132,1770484815148,-220.8233948,0.00044188,30]
[404704133,1770484815174,-156.00950939,0.00044188,30]
[404704134,1770484815205,-241.06371218,0.00044188,30]
[404704135,1770484815232,-248.6279647,0.00044188,30]
[404704136,1770484815260,-240.2879123,0.00044188,30]
[404704137,1770484815288,-240.97423674,0.00044188,30]
[404704138,1770484815315,-294.93613768,0.00044188,30]
[404704139,1770484815344,-152.23472097,0.00044188,30]
[404704140,1770484815370,-152.47527534,0.00044188,30]
[404704141,1770484815398,-245.53088248,0.00044188,30]
[404704142,1770484815425,-252.49035733,0.00044188,30]
[404704143,1770484815453,-153.22985056,0.00044188,30]
[404704144,1770484815481,-250.0,0.00044189,30]
[404704145,1770484815508,-254.14714205,0.00044189,120]
[404704146,1770484815535,-250.0,0.00044191,30]
[404704147,1770484815563,-250.0,0.00044194,30]
[404704148,1770484815589,-250.0,0.00044196,30]
[404704149,1770484815614,-250.0,0.00044196,120]
[404704150,1770484815641,-250.0,0.00044206,30]
[404704151,1770484815668,-250.0,0.00044206,120]
[404704152,1770484815696,-159.11825668,0.0004425,120]
[404704153,1770484815723,-150.0,0.00044281,120]
[404704154,1770484815750,-154.0,0.000443,120]
[404704155,1770484815778,-153.0,0.000444,120]
[404704156,1770484815806,-2500.0,0.00044456,120]
[404704157,1770484815833,-500.0,0.000445,120]
[404704158,1770484815863,-62244.0,0.00044526,30]
[404704159,1770484815892,-150.0,0.00044527,120]
[404704160,1770484815920,-3463.98098796,0.00044744,120]
[404704161,1770484815946,-500.0,0.000448,120]
[404704162,1770484815973,-172.0,0.00044877,90]
[404704163,1770484815999,-637.93333063,0.0004489,120]
[404704164,1770484816028,-1676.11011784,0.000449,30]
[404704165,1770484816055,-2500.0,0.00044955,120]
[404704166,1770484816082,-1753.95926853,0.00044955,120]
[404704167,1770484816110,-211.0,0.0004496,30]
[404704168,1770484816137,-62244.0,0.00044967,30]
[404704169,1770484816163,-600.0,0.00045,120]
[404704170,1770484816189,-160.0,0.00045,85]
[404704171,1770484816216,-154.25646437,0.00045,30]
[404704172,1770484816242,-6527.0,0.00045,90]
[404704173,1770484816268,-550.7860276,0.00045,120]
[404704174,1770484816296,-354.05949287,0.00045,120]
[404704175,1770484816322,-895.65788564,0.00045,120]
[404704176,1770484816349,-392.79883122,0.00045,120]
[404704177,1770484816374,-212.82513878,0.00045,120]
[404704178,1770484816399,-636.66,0.00045,120]
[404704179,1770484816424,-305.91942147,0.00045,120]
[404704180,1770484816449,-28601.945182,0.00045,120]
[404704181,1770484816688,-150.0,0.00045,120]
[404704182,1770484816716,-12000.0,0.00045,120]
[404704183,1770484816742,-6233.84,0.00045,120]
[404704184,1770484816768,-65303.0,0.00045,120]
[404704185,1770484816795,-1000.0,0.00045,120]
[404704186,1770484816821,-174.75844743,0.00045,120]
[404704187,1770484816848,-411.23,0.00045,120]
[404704188,1770484816877,-150.0,0.00045,120]
[404704189,1770484816903,-3510.42,0.00045,120]
[404704190,1770484816930,-1439.0,0.00045,120]
[404704191,1770484816956,-14314.51161693,0.00045,120]
[404704192,1770484816983,-9535.0,0.00045,120]
[404704193,1770484817009,-200.0,0.00045,120]
[404704194,1770484817036,-1511.41,0.00045,30]
[404704195,1770484817065,-2044.97,0.00045,120]
[404704196,1770484817091,-289.25,0.00045,120]
[404704197,1770484817118,-559.5418429,0.000451,120]
[404704198,1770484817147,-150.0,0.0004518,120]
[404704199,1770484817173,-154.0,0.000452,120]
[404704200,1770484817201,-153.0,0.000452,120]
[404704201,1770484817229,-1426.56,0.000453,90]
[404704202,1770484817256,-1426.56,0.000453,120]
[404704203,1770484817284,-1283.9,0.000453,90]
[404704204,1770484817311,-1283.9,0.000453,90]
[404704205,1770484817338,-283.5101,0.000453,90]
[404704206,1770484817365,-3964.12523387,0.00045306,120]
[404704207,1770484817392,-151.0,0.00045405,120]
[404704208,1770484817422,-55040.70911705,0.00045408,30]
[404704209,1770484818528,-1000.0,0.00034339,120]
[404704210,1770484818554,-256.366,0.00034339,120]
[404704211,1770484818588,-10000.0,0.0004274,120]
[404704212,1770484818616,-1113.28784887,0.000428,120]
[404704213,1770484818644,-201.93286099,0.00042999,120]
[404704214,1770484818669,-194.68399343,0.00042999,120]
[404704215,1770484818694,-300.08012,0.00043008,114]
[404704216,1770484818723,-241.976776,0.00043207,120]
[404704217,1770484818749,-265.565396,0.00043207,31]
[404704218,1770484818775,-151.0,0.00043207,120]
[404704219,1770484818803,-350.29852,0.00043207,120]
[404704220,1770484818829,-241.976776,0.00043207,120]
[404704221,1770484818859,-265.565396,0.00043207,31]
[404704222,1770484818886,-151.0,0.00043207,120]
[404704223,1770484818912,-151.0,0.00043207,120]
[404704224,1770484818942,-241.976776,0.00043207,120]
[404704225,1770484818974,-241.976776,0.00043207,120]
[404704226,1770484819009,-151.0,0.0004321,120]
[404704227,1770484819039,-265.565396,0.0004321,31]
[404704228,1770484819070,-265.565396,0.0004321,31]
[404704229,1770484819099,-241.976776,0.0004321,120]
[404704230,1770484819130,-151.0,0.0004321,120]
[404704231,1770484819163,-265.565396,0.0004321,31]
[404704232,1770484819193,-241.976776,0.0004321,120]
[404704233,1770484819227,-151.0,0.0004321,120]
[404704234,1770484819259,-350.29852,0.0004321,120]
[404704235,1770484819291,-350.29852,0.0004321,120]
[404704236,1770484819320,-241.976776,0.0004321,120]
[404704237,1770484819350,-265.565396,0.0004321,31]
[404704238,1770484819379,-151.0,0.0004321,120]
[404704239,1770484819409,-241.976776,0.0004321,120]
[404704240,1770484819441,-265.565396,0.0004321,31]
[404704241,1770484819474,-151.0,0.0004321,120]
[404704242,1770484819503,-151.0,0.0004321,120]
[404704243,1770484819533,-151.0,0.0004321,120]
[404704244,1770484819562,-241.976776,0.0004321,120]
[404704245,1770484819590,-241.976776,0.0004321,120]
[404704246,1770484819619,-241.976776,0.0004321,120]
[404704247,1770484819647,-241.976776,0.0004321,120]
[404704248,1770484819680,-151.0,0.00044052,120]
[404704249,1770484819709,-265.565396,0.00044052,31]
[404704250,1770484819739,-241.976776,0.00044052,120]
[404704251,1770484819770,-265.565396,0.00044052,31]
[404704252,1770484819799,-151.0,0.00044052,120]
[404704253,1770484819830,-350.29852,0.00044052,120]
[404704254,1770484819863,-241.976776,0.00044052,120]
[404704255,1770484819895,-265.565396,0.00044052,31]
[404704256,1770484819927,-151.0,0.00044052,120]
[404704257,1770484819958,-187.308372,0.00044052,120]
[404704258,1770484819988,-241.976776,0.00044052,120]
[404704259,1770484820033,-241.976776,0.00044052,120]
[404704260,1770484820073,-840.151229,0.00044053,120]
[404704261,1770484820105,-265.565396,0.00044053,31]
[404704262,1770484820137,-151.0,0.00044053,120]
[404704263,1770484820171,-241.976776,0.00044053,120]
[404704264,1770484820209,-265.565396,0.00044053,31]
[404704265,1770484820243,-151.0,0.00044053,120]
[404704266,1770484820275,-350.298512,0.00044053,120]
[404704267,1770484820309,-265.565393,0.00044053,31]
[404704268,1770484820341,-151.0,0.00044053,120]
[404704269,1770484820377,-241.976776,0.00044053,120]
[404704270,1770484820409,-241.976776,0.00044053,120]
[404704271,1770484820441,-241.97678,0.00044053,120]
[404704272,1770484820470,-260.044583,0.00044053,120]
[404704273,1770484820498,-260.044583,0.00044053,120]
[404704274,1770484820528,-260.044583,0.00044053,120]
[404704275,1770484820559,-260.044583,0.00044053,120]
[404704276,1770484820590,-260.044583,0.00044053,120]
[404704277,1770484820622,-260.044583,0.00044053,120]
[404704278,1770484820652,-260.044583,0.00044053,120]
[404704279,1770484820684,-260.044583,0.00044053,120]
[404704280,1770484820715,-260.044583,0.00044053,120]
[404704281,1770484820742,-260.044583,0.00044053,120]
[404704282,1770484820771,-260.044583,0.00044053,120]
[404704283,1770484820798,-260.044583,0.00044053,120]
[404704284,1770484820826,-260.044583,0.00044053,120]
[404704285,1770484820858,-260.044583,0.00044053,120]
[404704286,1770484820886,-260.044583,0.00044053,120]
[404704287,1770484820919,-260.044583,0.00044053,120]
[404704288,1770484820948,-260.044583,0.00044053,120]
[404704289,1770484820983,-260.044583,0.00044053,120]
[404704290,1770484821013,-260.044583,0.00044053,120]
[404704291,1770484821044,-260.044579,0.00044053,120]
[404704292,1770484821083,-1000.0,0.00044106,120]
[404704293,1770484821119,-7203.29088295,0.00045408,30]
[404704294,1770484821152,-150.0,0.00045416,120]
[404704295,1770484821183,-150.0,0.00045417,120]
[404704296,1770484821215,-1457.68,0.0004542,120]
[404704297,1770484821247,-150.0,0.00045532,120]
[404704298,1770484821280,-150.0,0.00045659,120]
[404704299,1770484821309,-401.36017398,0.000457,120]
[404704300,1770484821340,-12018.0,0.00045743,117]
[404704301,1770484821371,-150.0,0.00045792,120]
[404704302,1770484821400,-4464.89668313,0.00045869,120]
[404704303,1770484821429,-150.0,0.00045892,120]
[404704304,1770484821459,-153.0,0.000459,120]
[404704305,1770484821490,-205.16038385,0.00046,30]
[404704306,1770484821519,-470.16190802,0.00046,120]
[404704307,1770484821918,-474.7316297,0.00046,90]
[404704308,1770484821957,-400.0,0.00046,120]
[404704309,1770484821987,-18660.57620996,0.00046,120]
[404704310,1770484822015,-154.0,0.00046,120]
[404704311,1770484822059,-215.69111933,0.00046,30]
[404704312,1770484822091,-10841.66609588,0.00046,120]
[404704313,1770484822119,-150.0,0.00046,120]
[404704314,1770484822148,-695.0,0.00046,120]
[404704315,1770484822179,-5465.06853722,0.00046,120]
[404704316,1770484822211,-198.44259772,0.00046156,96]
[404704317,1770484822240,-150.0,0.00046258,120]
[404704318,1770484822271,-200.0,0.00046342,120]
[404704319,1770484822301,-1511.41,0.000464,30]
[404704320,1770484822332,-4966.22600042,0.00046431,120]
[404704321,1770484822362,-26234.99242935,0.0004649,120]
[404704322,1770484822390,-150.0,0.00046495,120]
[404704323,1770484822419,-300.0,0.00046575,30]
[404704324,1770484822448,-300.0,0.00046575,30]
[404704325,1770484822483,-300.0,0.00046575,30]
[404704326,1770484822511,-2282.49,0.000466,120]
[404704327,1770484822540,-153.0,0.000467,120]
[404704328,1770484822568,-590.12,0.00046737,120]
[404704329,1770484822595,-305182.04585646,0.000468,120]
[404704330,1770484822624,-577.67,0.000468,120]
[404704331,1770484822651,-154.89810669,0.00046802,120]
[404704332,1770484822678,-875.45773914,0.000469,120]
[404704333,1770484822705,-154.0,0.000469,120]
[404704334,1770484822733,-211.0,0.0004698,30]
[404704335,1770484822762,-450.0,0.00046986,120]
[404704336,1770484822790,-5468.0577333,0.00046994,120]
[404704337,1770484822818,-165.82364796,0.00047,120]
[404704338,1770484822849,-200.0,0.00047,120]
[404704339,1770484822879,-65303.0,0.00047,120]
[404704340,1770484822906,-150.0,0.00047,120]
[404704341,1770484822935,-1439.0,0.00047,120]
[404704342,1770484822964,-9535.0,0.00047,120]
[404704343,1770484822993,-269.51,0.00047,60]
[404704344,1770484823022,-175.0,0.00047121,90]
[404704345,1770484823053,-577.67,0.00047208,120]
[404704346,1770484823083,-2044.97,0.0004725,120]
[404704347,1770484823112,-289.25,0.0004725,120]
[404704348,1770484823141,-153.0,0.000474,120]
[404704349,1770484823169,-619.2104085,0.000475,120]
[404704350,1770484823197,-5970.34651217,0.00047556,120]
[404704351,1770484823227,-577.67,0.00047616,120]
[404704352,1770484823257,-200.0,0.00047683,120]
[404704353,1770484823285,-154.0,0.000477,120]
[404704354,1770484823318,-13019.5,0.00047764,117]
[404704355,1770484823347,-205.13046957,0.00047997,120]
[404704356,1770484823374,-1000.0,0.00047999,120]
[404704357,1770484823402,-416.57873525,0.00048,120]
[404704358,1770484823428,-302.68128462,0.00048,120]
[404704359,1770484823455,-400.0,0.00048,120]
[404704360,1770484823481,-290.09,0.00048,120]
[404704361,1770484823509,-20000.0,0.00048,120]
[404704362,1770484823536,-150.0,0.00048,120]
[404704363,1770484823563,-5465.06853722,0.00048,120]
[404704364,1770484823589,-45436.02704034,0.00048,120]
[404704365,1770484823616,-55912.4353026,0.00048,120]
[404704366,1770484823645,-577.67,0.00048024,120]
[404704367,1770484823673,-153.0,0.000481,120]
[404704368,1770484823701,-6473.05452326,0.00048118,120]
[404704369,1770484823731,-3985.12746674,0.000484,30]
[404704370,1770484823760,-577.67,0.00048432,120]
[404704371,1770484823789,-3467.74756997,0.000485,30]
[404704372,1770484823816,-161.47437424,0.000485,120]
[404704373,1770484823842,-516.80996623,0.00048533,120]
[404704374,1770484823872,-154.0,0.000486,120]
[404704375,1770484823899,-6976.14976223,0.00048681,120]
[404704376,1770484823926,-1000.0,0.00048766,30]
[404704377,1770484823953,-4000.0,0.0004879,120]
[404704378,1770484823980,-7359.66998703,0.000488,120]
[404704379,1770484824008,-150.0,0.0004882,120]
[404704380,1770484824037,-577.67,0.0004884,120]
[404704381,1770484824066,-2557.72204938,0.00048875,60]
[404704382,1770484824093,-17162.79213308,0.00048875,30]
[404704383,1770484824120,-350.0,0.0004888,120]